Workbook

Sheet 1
A1: Школа | B1: ГБОУ "Татарско -Елтанская школа -интернат для детей с ОВЗ" | E1: Отд./корп | I1: День | J1: 2024-03-05
J2: ,19,02,22
A3: Прием пищи | B3: Раздел | C3: № рец. | D3: Блюдо | E3: Выход, г | F3: Цена | G3: Калорийность | H3: Белки | I3: Жиры | J3: Углеводы | M3: ,
A4: Завтрак | B4: гор.блюдо | D4: омлет натуральный | E4: 200 | F4: 24.57 | G4: 345.7 | H4: 18.99 | I4: 28.3 | J4: 13.51
B5: гор.напиток | D5: кофейный напиток с молоком | E5: 200 | F5: 16.42 | G5: 100 | H5: 3.7 | I5: 2.68 | J5: 15.9
B6: хлеб | D6: бутерброд с маслом | E6: 30*20 | F6: 6.66 | G6: 220 | H6: 6.66 | I6: 22.5 | J6: 15.21
B7: хлеб | D7: хлеб пшеничный | E7: 70 | F7: 4.66 | G7: 164 | H7: 4.72 | I7: 0.57 | J7: 35.86
F8: =SUM(F4:F7) -> 52.31 | G8: =SUM(G4:G7) -> 830.2 | H8: =SUM(H4:H7) -> 34.07 | I8: =SUM(I4:I7) -> 54.05 | J8: =SUM(J4:J7) -> 80.48
B9: фрукты | D9: яблоко | E9: 120 | F9: 10.80 | G9: 66 | H9: 0 | I9: 0 | J9: 14.64
B10: сок | D10: сок фруктовый | E10: 200 | F10: 12.80 | G10: 84.8 | H10: 1 | I10: 0 | J10: 20
B11: кондит.изд | D11: печенье | E11: 20 | F11: 1.82 | G11: 190.1 | H11: 3.38 | I11: 3.77 | J11: 15.97
F12: =SUM(F9:F11) -> 25.42 | G12: =SUM(G9:G11) -> 341 | H12: 9.42 | I12: =SUM(I9:I11) -> 3.77 | J12: =SUM(J9:J11) -> 50.81
A13: Обед | B13: закуска | D13: салат из свеклы с яблоками | E13: 60 | F13: 5.23 | G13: 27 | H13: 0.79 | I13: 2.99 | J13: 5.98
B14: 1 блюдо | D14: суп картофельный с мясными фрикаделькам | E14: 250*20 | F14: 19.15 | G14: 153 | H14: 6.15 | I14: 5.96 | J14: 9.9
B15: 2 блюда | D15: плов из птицы | E15: 210 | F15: 30.54 | G15: 377 | H15: 15.3 | I15: 17 | J15: 35.6
B17: гор.напиток | D17: копмот из сухофруктов | E17: 200 | F17: 2.42 | G17: 158 | H17: 0.95 | I17: 0 | J17: 37.1
B18: хлеб | D18: хлеб пшеничный | E18: 50 | F18: 2.65 | G18: 117 | H18: 0 | I18: 3 | J18: 25
B19: хлеб черн. | D19: хлеб ржаной | E19: 100 | F19: 5.50 | G19: 228 | H19: 5.56 | I19: 1.13 | J19: 49
F21: =SUM(F13:F20) -> 65.49 | G21: =SUM(G13:G20) -> 1060 | H21: =SUM(H13:H20) -> 29.16 | I21: =SUM(I13:I20) -> 30.46 | J21: =SUM(J13:J20) -> 162.61
A22: Полдник | B22: выпечка | D22: ватрушка с творогом | E22: 70 | F22: 28.52 | G22: 187 | H22: 2.38 | I22: 11.3 | J22: 70.2
B23: гор.напиток | D23: чай с молоком | E23: 200 | F23: 2.47 | G23: 86 | H23: 1.4 | I23: 1.60 | J23: 16.4
B24: фрукты | D24: банан | E24: 150 | F24: 15.63 | G24: 141 | H24: 2.26 | I24: 0.76 | J24: 28.5
F25: =SUM(F22:F24) -> 46.62 | G25: =SUM(G22:G24) -> 414 | H25: =SUM(H22:H24) -> 6.04 | I25: =SUM(I22:I24) -> 13.66 | J25: =SUM(J22:J24) -> 115.1
A26: Ужин | B26: закуска | D26: салат из белокачанной капусты | E26: 60 | F26: 3.57 | G26: 52 | H26: 0.85 | I26: 3.05 | J26: 51.4
B27: мясо | D27: котлета из говядины | E27: 100 | F27: 43.20 | G27: 228.7 | H27: 15.5 | I27: 11.5 | J27: 15.7
B28: гарнир | D28: каша гречневая рассыпчатая | E28: 150 | F28: 8.87 | G28: 230 | H28: 7.76 | I28: 5.51 | J28: 35
B29: гор.напиток | D29: чай с лимоном | E29: 200 | F29: 1.87 | G29: 28 | H29: 4.51 | I29: 1.14 | J29: 9.47
B30: хлеб | D30: хлеб пшеничный | E30: 50 | F30: 2.65 | G30: 117 | H30: 0.41 | I30: 3.38 | J30: 25.30
B31: хлеб | D31: хлеб ржаной | E31: 50 | F31: 2.75 | G31: 114 | H31: 2.78 | I31: 0.56 | J31: 24.7
B32: кисломолоч | D32: ряженка | E32: 200 | F32: 19.31 | G32: 106 | H32: 5.8 | I32: 5 | J32: 8
F34: =SUM(F26:F33) -> 82.22 | G34: =SUM(G26:G33) -> 875 | H34: =SUM(H26:H33) -> 37.61 | I34: =SUM(I26:I33) -> 30.14 | J34: =SUM(J26:J33) -> 169.57
F35: =SUM(F34,F25,F21,F12,F8) -> 272.06 | G35: =SUM(G34,G25,G21,G12,G8) -> 3520 | H35: =SUM(H8)+H12+H21+H25+H34 -> 116.3 | I35: =SUM(I8+I12+I21+I25+I34) -> 132.08 | J35: =SUM(J8+J12+J21+J25+J34) -> 578.57
